bitfinex/quotes_SOLUSD_20220114
["timestamp","ask_amount","ask_price","bid_price","bid_amount"]
[1642171862664,10.2581,146.28,146.17,2.735]
[1642171863065,8.23,146.27,146.17,2.735]
[1642171863365,23.38286401,146.25,146.12,2.735]
[1642171863566,31.61286401,146.25,146.12,8.735]
[1642171863766,41.87346401,146.25,146.14,1.50567479]
[1642171863966,8.23,146.29,146.14,15.55167479]
[1642171864164,8.23,146.29,146.14,25.6787862]
[1642171864366,8.23,146.29,146.15,71.22567479]
[1642171864566,8.23,146.29,146.15,77.22567479]
[1642171864769,2.736,146.31,146.22,10.2545]
[1642171864969,2.734,146.34,146.22,24.4345]
[1642171865166,10.964,146.37,146.22,24.4345]
[1642171865367,10.964,146.37,146.22,34.43017479]
[1642171865569,8.23,146.37,146.23,2.734]
[1642171865969,22.49606648,146.36,146.24,1.50567479]
[1642171866168,2.734,146.38,146.25,2.734]
[1642171866367,2.733,146.4,146.25,9.868]
[1642171866565,2.733,146.4,146.3,10.2487]
[1642171866769,74.0771,146.42,146.3,20.4997]
[1642171866966,84.797531,146.43,146.3,26.7497]
[1642171867167,23.90295549,146.42,146.3,26.7497]
[1642171867367,23.90295549,146.42,146.3,24.0167]
[1642171868066,24.15295549,146.42,146.3,24.0167]
[1642171868266,24.15295549,146.42,146.3,17.7667]
[1642171868469,10.962,146.41,146.3,10.2487]
[1642171868968,21.211,146.41,146.3,10.2487]
[1642171869568,21.461,146.41,146.3,10.2487]
[1642171869770,12.981,146.41,146.3,10.2487]
[1642171869972,13.231,146.41,146.3,10.2487]
[1642171870171,2.732,146.41,146.3,10.4987]
[1642171870573,23.90295549,146.42,146.3,16.4987]
[1642171870774,23.90295549,146.42,146.31,2.732]
[1642171870970,23.90295549,146.42,146.36,10.2431]
[1642171871171,23.90295549,146.42,146.36,17.2861]
[1642171871973,23.90295549,146.42,146.34,10.2466]
[1642171872173,23.90295549,146.42,146.29,2.732]
[1642171872371,2.733,146.41,146.26,10.963]
[1642171872574,2.733,146.41,146.26,14.23]
[1642171872772,2.983,146.41,146.26,14.23]
[1642171873373,10.2496,146.4,146.3,10.2494]
[1642171873572,30.33449978,146.38,146.26,6.0]
[1642171873772,2.733,146.37,146.26,6.0]
[1642171873972,2.733,146.37,146.24,8.733]
[1642171874173,2.983,146.37,146.24,2.733]
[1642171874373,2.983,146.37,146.24,8.733]
[1642171874574,2.983,146.37,146.24,2.733]
[1642171875181,13.2346,146.37,146.24,12.9866]
[1642171876481,13.2346,146.37,146.24,10.2536]
[1642171876779,13.2346,146.37,146.24,10.5036]
[1642171877682,13.2346,146.37,146.23,2.734]
[1642171877881,13.2346,146.37,146.22,10.255]
[1642171877882,14.93537588,146.37,146.2,2.734]
[1642171878080,14.93537588,146.37,146.2,6.0]
[1642171878283,14.93537588,146.37,146.19,14.23]
[1642171878483,27.53880029,146.35,146.2,2.734]
[1642171878684,26.76489055,146.3,146.2,2.734]
[1642171878882,26.76489055,146.3,146.2,8.734]
[1642171879082,26.76489055,146.3,146.2,8.984]
[1642171879309,26.76489055,146.3,146.2,8.734]
[1642171879508,26.76489055,146.3,146.2,18.9903]
[1642171879709,37.02129055,146.3,146.2,18.9903]
[1642171879910,2.735,146.29,146.2,2.734]
[1642171880111,2.985,146.29,146.2,2.734]
[1642171880711,10.2584,146.27,146.2,2.734]
[1642171880909,0.25,146.29,146.2,2.734]
[1642171881110,27.01489055,146.3,146.2,2.734]
[1642171881413,2.735,146.31,146.2,2.734]
[1642171881609,0.25,146.31,146.2,2.734]
[1642171881810,0.25,146.31,146.2,19.2405]
[1642171882209,29.00255875,146.33,146.2,19.2405]
[1642171883009,29.00255875,146.33,146.2,27.4705]
[1642171884011,29.00255875,146.33,146.2,27.2205]
[1642171884212,29.00255875,146.33,146.2,18.9905]
[1642171884413,29.00255875,146.33,146.2,12.9905]
[1642171884616,4.43477588,146.32,146.2,2.734]
[1642171884811,4.43477588,146.32,146.18,10.2579]
[1642171885011,2.734,146.32,146.18,10.2579]
[1642171885414,39.96755875,146.33,146.19,2.735]
[1642171885612,37.23255875,146.33,146.24,10.2539]
[1642171886012,29.00255875,146.33,146.24,16.3919]
[1642171886513,29.00255875,146.33,146.24,16.6419]
[1642171886913,29.00255875,146.33,146.24,16.3919]
[1642171887115,29.00255875,146.33,146.2,12.9905]
[1642171887414,2.734,146.32,146.17,2.734]
[1642171887616,2.734,146.32,146.16,2.735]
[1642171887815,2.984,146.32,146.16,2.735]
[1642171888416,24.62199343,146.27,146.18,10.2579]
[1642171889016,24.87199343,146.27,146.16,2.735]
[1642171889316,2.735,146.26,146.16,2.735]
[1642171889516,26.71816146,146.24,146.16,12.9949]
[1642171889918,26.71816146,146.24,146.16,2.735]
[1642171890116,72.455,146.27,146.16,2.735]
[1642171890317,2.985,146.27,146.16,2.985]
[1642171890518,2.985,146.27,146.16,13.2449]
[1642171890519,10.2595,146.26,146.16,13.2449]
[1642171891019,10.2595,146.26,146.17,3.91115767]
[1642171891219,30.23166561,146.25,146.17,3.91115767]
[1642171891621,69.72,146.28,146.17,14.17045767]
[1642171892020,69.97,146.28,146.17,3.91115767]
[1642171892618,26.24896218,146.27,146.16,3.88565634]
[1642171892819,2.735,146.26,146.16,4.13565634]
[1642171893024,0.25,146.26,146.17,2.735]
[1642171893222,2.735,146.25,146.16,3.88565634]
[1642171893621,72.705,146.25,146.16,3.88565634]
[1642171893822,49.68228449,146.24,146.15,3.88565634]
[1642171894023,2.736,146.23,146.15,3.88565634]
[1642171894221,25.86289779,146.21,146.15,3.88565634]
[1642171894421,69.72,146.2,146.15,3.88565634]
[1642171894823,34.09289779,146.21,146.15,3.88565634]
[1642171895226,8.23,146.24,146.15,3.88565634]
[1642171895725,69.72,146.23,146.09,3.88565634]
[1642171895924,69.72,146.23,146.09,9.88565634]
[1642171896127,23.09185755,146.22,146.09,10.13565634]
[1642171896326,23.09185755,146.22,146.13,10.2616]
[1642171896727,23.09185755,146.22,146.13,10.5116]
[1642171896927,23.34185755,146.22,146.13,10.5116]
[1642171897127,8.23,146.24,146.13,10.5116]
[1642171897332,14.83060089,146.27,146.14,2.736]
[1642171897528,3.86460089,146.27,146.2,10.2574]
[1642171897727,3.86460089,146.27,146.2,17.0364]
[1642171898929,3.86460089,146.27,146.2,10.2574]
[1642171899429,97.97222712,146.28,146.2,10.2574]
[1642171899630,2.735,146.27,146.18,10.2586]
[1642171899829,2.735,146.27,146.15,3.88565634]
[1642171900029,2.985,146.27,146.15,3.88565634]
[1642171900231,12.91577588,146.27,146.15,3.88565634]
[1642171900432,69.72,146.26,146.14,0.25]
[1642171900634,25.14408773,146.24,146.13,3.88565634]
[1642171900834,25.14408773,146.24,146.15,10.2609]
[1642171901033,69.72,146.26,146.15,16.5109]
[1642171901233,2.736,146.28,146.15,16.5109]
[1642171901434,12.09460089,146.29,146.16,2.735]
[1642171901834,3.86460089,146.28,146.16,8.985]
[1642171902036,29.50027878,146.27,146.16,8.985]
[1642171902335,29.50027878,146.27,146.16,43.1757]
[1642171902535,29.50027878,146.27,146.16,8.735]
[1642171902834,39.43105466,146.27,146.16,2.735]
[1642171903034,2.735,146.26,146.13,3.88565634]
[1642171903234,10.2619,146.24,146.15,10.2609]
[1642171903439,33.88148872,146.24,146.15,10.2609]
[1642171903636,23.61958872,146.24,146.15,10.2609]
[1642171903836,23.61958872,146.24,146.15,10.5109]
[1642171904037,23.61958872,146.24,146.15,10.2609]
[1642171904245,2.736,146.26,146.15,10.5109]
[1642171904440,2.735,146.28,146.15,25.1499]
[1642171904641,6.59960089,146.29,146.15,25.1499]
[1642171904842,3.86460089,146.29,146.15,25.1499]
[1642171905043,32.83059009,146.29,146.16,1.50539967]
[1642171905462,3.86460089,146.31,146.22,10.2556]
[1642171905967,3.86460089,146.31,146.22,10.5056]
[1642171906465,3.86460089,146.31,146.22,16.5056]
[1642171906664,26.28349742,146.3,146.22,10.5056]
[1642171907363,3.86460089,146.32,146.22,10.5056]
[1642171907563,3.86460089,146.32,146.22,21.9986]
[1642171908164,6.59860089,146.34,146.22,21.9986]
[1642171908365,6.59860089,146.34,146.28,10.25]
[1642171908366,3.86460089,146.34,146.28,10.25]
[1642171908566,3.86460089,146.34,146.28,18.792]
[1642171908765,3.86460089,146.34,146.29,2.733]
[1642171908965,3.86460089,146.34,146.29,8.983]
[1642171909168,350.82881113,146.37,146.29,8.983]
[1642171909566,3.86460089,146.37,146.29,8.983]
[1642171909767,3.86460089,146.37,146.31,10.2489]
[1642171909969,4.11460089,146.37,146.31,16.2489]
[1642171910169,2.733,146.36,146.31,6.0]
[1642171910571,2.983,146.36,146.29,8.733]
[1642171910773,2.983,146.36,146.29,2.733]
[1642171911078,2.983,146.36,146.29,8.733]
[1642171911271,2.733,146.36,146.29,8.733]
[1642171911473,0.25,146.36,146.29,8.733]
[1642171911674,2.983,146.36,146.29,2.733]
[1642171911871,2.733,146.36,146.29,2.733]
[1642171912275,2.733,146.37,146.23,2.733]
[1642171912474,6.59860089,146.38,146.23,9.243]
[1642171912678,3.86460089,146.38,146.23,9.243]
[1642171912873,3.86460089,146.38,146.24,8.23]
[1642171913077,3.86460089,146.38,146.25,2.733]
[1642171913477,14.36590089,146.38,146.25,8.983]
[1642171913680,13.2343,146.38,146.25,6.25]
[1642171913879,13.2343,146.38,146.25,8.983]
[1642171914279,12.9843,146.38,146.25,8.733]
[1642171914478,2.733,146.38,146.27,10.2523]
[1642171914680,6.59760089,146.39,146.27,10.2523]
[1642171914879,6.59760089,146.39,146.27,16.2523]
[1642171915582,16.84820089,146.39,146.27,16.5023]
[1642171915784,23.66704497,146.38,146.27,16.5023]
[1642171916084,23.91704497,146.38,146.27,16.5023]
[1642171916716,23.91704497,146.38,146.27,10.5023]
[1642171916882,23.91704497,146.38,146.27,10.2523]
[1642171917083,34.16824497,146.38,146.25,2.733]
[1642171917283,2.733,146.37,146.23,3.88565634]
[1642171917482,12.91377588,146.37,146.23,3.88565634]
[1642171918086,10.2536,146.35,146.23,3.88565634]
[1642171918388,2.734,146.34,146.23,14.14145634]
[1642171918586,2.734,146.35,146.23,14.14145634]
[1642171918789,0.25,146.34,146.23,10.2558]
[1642171918987,2.734,146.33,146.23,10.2558]
[1642171919287,30.39820263,146.32,146.23,10.2558]
[1642171919488,2.734,146.33,146.23,10.2558]
[1642171919692,2.734,146.35,146.23,17.2858]
[1642171919988,3.86460089,146.36,146.23,23.5358]
[1642171920388,3.86460089,146.36,146.24,14.21132328]
[1642171920588,3.86460089,146.36,146.3,10.2493]
[1642171920789,3.86460089,146.36,146.3,17.8613]
[1642171920989,7.77426791,146.37,146.3,18.1113]
[1642171921392,7.77426791,146.37,146.3,17.8613]
[1642171921791,7.77426791,146.38,146.3,17.8613]
[1642171921992,77.74426791,146.38,146.3,17.8613]
[1642171922195,77.74426791,146.38,146.25,2.733]
[1642171922395,2.733,146.37,146.22,2.733]
[1642171922694,6.84760089,146.37,146.22,8.733]
[1642171923493,2.983,146.37,146.27,10.2523]
[1642171924320,0.25,146.37,146.27,10.2523]
[1642171924524,2.733,146.38,146.27,16.5023]
[1642171924720,26.96129029,146.39,146.27,10.5023]
[1642171924922,2.733,146.38,146.27,10.5023]
[1642171925121,69.72,146.38,146.27,10.5023]
[1642171925323,69.72,146.38,146.27,10.2523]
[1642171925522,2.733,146.37,146.27,10.2523]
[1642171926524,2.733,146.39,146.27,16.2523]
[1642171926722,3.86460089,146.4,146.28,1.50163028]
[1642171926922,3.86460089,146.38,146.28,1.50163028]
[1642171927122,3.86460089,146.38,146.34,10.2465]
[1642171927323,3.86460089,146.38,146.34,18.6675]
[1642171927523,3.86460089,146.38,146.34,24.9175]
[1642171928323,3.90785065,146.43,146.34,24.9175]
[1642171929324,30.12006526,146.44,146.34,24.9175]
[1642171929525,26.25546437,146.44,146.34,24.9175]
[1642171930726,26.50546437,146.44,146.34,12.9785]
[1642171930926,2.732,146.43,146.3,8.23]
[1642171931127,2.982,146.43,146.3,8.23]
[1642171931326,4.68277588,146.43,146.29,3.88565634]
[1642171931526,12.91277588,146.43,146.29,3.88565634]
[1642171932027,14.11360089,146.41,146.29,10.251]
[1642171932227,16.84660089,146.41,146.29,10.251]
[1642171932427,25.32660089,146.41,146.29,10.251]
[1642171932828,25.32660089,146.41,146.25,10.962]
[1642171933034,25.32660089,146.41,146.25,14.23]
[1642171933234,10.2521,146.37,146.25,14.23]
[1642171933435,10.2521,146.37,146.25,10.963]
[1642171933436,23.45608728,146.36,146.25,10.963]
[1642171933731,23.45608728,146.36,146.25,2.733]
[1642171934131,23.70608728,146.36,146.25,2.983]
[1642171934333,23.70608728,146.36,146.23,2.734]
[1642171934531,79.9733,146.35,146.26,10.2536]
[1642171934831,82.7073,146.35,146.23,2.734]
[1642171935231,8.23,146.34,146.23,2.734]
[1642171935431,2.734,146.33,146.23,2.734]
[1642171935632,29.3560495,146.28,146.23,2.734]
[1642171936034,29.6060495,146.28,146.23,2.734]
[1642171936231,2.734,146.27,146.19,3.88565634]
[1642171936733,2.984,146.27,146.19,3.88565634]
[1642171936935,10.2593,146.26,146.19,3.88565634]
[1642171937133,2.735,146.25,146.19,3.88565634]
[1642171937333,2.985,146.26,146.16,3.88565634]
[1642171937735,2.735,146.26,146.16,3.88565634]
[1642171937933,29.3560495,146.28,146.16,14.14635634]
[1642171938134,29.3560495,146.28,146.17,2.735]
[1642171938533,29.3560495,146.28,146.17,6.53927354]
[1642171938935,29.3560495,146.28,146.17,12.78927354]
[1642171939135,10.2565,146.3,146.21,10.2566]
[1642171939337,10.2565,146.3,146.21,16.3396]
[1642171939537,10.2565,146.3,146.22,2.734]
[1642171939936,10.2565,146.3,146.22,2.984]
[1642171940337,8.23,146.32,146.22,13.55941227]
[1642171940536,8.23,146.32,146.22,12.9905]
[1642171940935,8.23,146.32,146.2,2.734]
[1642171941135,29.48551035,146.31,146.19,9.88565634]
[1642171941340,29.48551035,146.31,146.19,3.88565634]
[1642171941536,10.259,146.28,146.19,3.88565634]
[1642171941937,2.735,146.27,146.18,3.88565634]
[1642171942339,2.985,146.27,146.18,3.88565634]
[1642171942538,28.04319726,146.25,146.18,3.88565634]
[1642171942739,2.735,146.24,146.18,3.88565634]
[1642171943139,2.985,146.24,146.16,3.88565634]
[1642171943538,10.2649,146.21,146.16,3.88565634]
[1642171943938,10.5149,146.21,146.16,3.88565634]
[1642171944339,10.5149,146.21,146.13,9.16467678]
[1642171944538,8.7649,146.21,146.13,3.88565634]
[1642171944742,69.72,146.22,146.13,3.88565634]
[1642171944940,0.25,146.21,146.13,3.88565634]
[1642171946041,78.2,146.22,146.15,3.88565634]
[1642171946243,2.736,146.21,146.15,3.88565634]
[1642171946442,21.2315,146.21,146.15,3.88565634]
[1642171946641,21.4815,146.21,146.11,3.91214481]
[1642171946841,23.18227588,146.21,146.11,3.91214481]
[1642171947040,69.72,146.2,146.11,3.91214481]
[1642171947248,24.5595246,146.18,146.08,5.27902044]
[1642171947442,10.967,146.17,146.08,5.27902044]
[1642171947643,10.271,146.14,146.08,5.27902044]
[1642171947846,86.25182428,146.12,146.06,7.82247092]
[1642171948042,47.0,146.1,146.06,7.092e-05]
[1642171948244,37.738,146.09,146.01,9.4680084]
[1642171948446,8.23,146.08,145.96,9.4680084]
[1642171948644,72.459,146.07,145.96,9.4680084]
[1642171948843,32.86789062,146.06,145.96,9.4680084]
[1642171949042,2.739,146.05,145.96,9.4680084]
[1642171949244,35.85689062,146.06,145.96,9.4680084]
[1642171949846,35.85689062,146.06,145.93,3.9153877]
[1642171950045,35.85689062,146.06,145.93,2.4153877]
[1642171950478,35.60689062,146.06,145.93,3.92002212]
[1642171950872,35.85689062,146.06,145.93,3.92002212]
[1642171951574,33.11789062,146.06,145.93,14.19612212]
[1642171951773,32.86789062,146.06,145.94,2.739]
[1642171951974,32.86789062,146.06,145.94,3.249]
[1642171951975,24.63789062,146.06,145.94,3.249]
[1642171952178,49.5437,146.11,145.95,1.50463442]
[1642171952375,8.23,146.12,145.96,2.739]
[1642171952573,8.23,146.12,145.96,2.989]
[1642171952773,8.48,146.12,145.97,1.50463442]
[1642171952974,2.738,146.11,145.97,1.50463442]
[1642171953177,30.39557571,146.1,145.96,2.989]
[1642171953375,2.739,146.09,145.96,2.739]
[1642171953577,10.2753,146.08,145.95,2.739]
[1642171953776,2.739,146.07,145.94,8.23]
[1642171954077,2.989,146.07,145.94,8.23]
[1642171954677,2.989,146.07,145.94,18.5054]
[1642171954878,0.25,146.07,145.95,2.739]
[1642171955078,2.739,146.06,145.92,2.739]
[1642171955477,2.989,146.06,145.92,2.739]
[1642171955777,0.25,146.06,145.92,2.989]
[1642171955979,0.25,146.06,145.92,13.2656]
[1642171956579,2.989,146.07,145.92,2.989]
[1642171956878,2.989,146.07,145.92,2.739]
[1642171957278,8.23,146.06,145.92,2.739]
[1642171957480,69.72,146.03,145.91,13.0162]
[1642171957780,2.74,146.02,145.91,10.2772]
[1642171957977,72.46,146.03,145.91,13.2672]
[1642171958179,69.97,146.03,145.91,13.2672]
[1642171958583,69.72,146.03,145.91,13.2672]
[1642171958781,29.0501542,146.04,145.91,13.2672]
[1642171958983,26.3101542,146.04,145.94,10.2748]
[1642171959182,26.3101542,146.04,145.95,2.739]
[1642171959382,26.3101542,146.04,145.94,13.0138]
[1642171959584,26.3101542,146.04,145.94,10.2748]
[1642171959787,26.3101542,146.04,145.93,2.739]
[1642171960195,2.74,146.03,145.93,2.739]
[1642171960989,2.99,146.03,145.93,2.739]
[1642171961191,13.2693,146.03,145.93,2.739]
[1642171961593,69.72,146.02,145.93,2.739]
[1642171961790,2.74,146.01,145.93,2.739]
[1642171961989,2.74,146.01,145.89,95.4]
[1642171962189,2.99,146.01,145.9,0.25]
[1642171962790,2.74,146.01,145.9,0.25]
[1642171962991,2.74,146.03,145.91,10.97]
[1642171963191,26.3101542,146.04,145.91,10.97]
[1642171963391,26.3101542,146.04,145.92,20.71332887]
[1642171963598,26.3101542,146.04,145.93,30.179349]
[1642171963796,26.3101542,146.04,145.94,10.267477]
[1642171963991,26.3101542,146.04,145.94,10.517477]
[1642171964193,26.3101542,146.04,145.94,0.25]
[1642171964393,26.5601542,146.04,145.93,8.23]
[1642171964593,2.74,146.03,145.9,10.97]
[1642171964893,2.74,146.03,145.9,8.23]
[1642171965095,82.9894,146.03,145.9,8.48]
[1642171965694,82.9894,146.03,145.9,8.23]
[1642171966496,91.2194,146.03,145.89,2.74]
[1642171967297,10.2825,145.98,145.89,2.74]
[1642171967500,31.69552738,145.96,145.89,2.74]
[1642171967799,8.23,146.01,145.89,2.74]
[1642171968095,69.72,146.0,145.89,6.21]
[1642171968300,69.72,146.0,145.9,2.74]
[1642171968497,2.74,146.0,145.86,2.74]
[1642171968697,22.92149968,145.99,145.86,2.74]
[1642171968897,22.92149968,145.99,145.87,1.50828789]
[1642171969113,23.17149968,145.99,145.87,7.71828789]
[1642171969299,23.17149968,145.99,145.87,16.4898]
[1642171969498,23.17149968,145.99,145.87,6.21]
[1642171969700,22.92149968,145.99,145.87,6.21]
[1642171970403,22.92149968,145.99,145.87,16.4903]
[1642171970602,22.92149968,145.99,145.87,16.7403]
[1642171970801,22.92149968,145.99,145.87,6.21]
[1642171971009,22.92149968,145.99,145.85,2.741]
[1642171971010,69.72,145.98,145.85,2.741]
[1642171971201,2.741,145.97,145.84,6.0]
[1642171971401,2.741,145.97,145.84,16.2823]
[1642171971803,2.741,145.98,145.85,1.50828789]
[1642171972002,72.711,145.98,145.86,2.741]
[1642171972203,2.741,145.98,145.86,9.902]
[1642171972401,2.741,146.04,145.89,0.31920911]
[1642171972604,2.74,146.07,145.9,10.97]
[1642171972806,445.78838293,146.09,145.93,0.30557804]
[1642171973004,445.78838293,146.09,145.94,10.969]
[1642171973200,24.2852381,146.08,145.94,10.969]
[1642171973402,477.48471261,146.09,145.98,69.0]
[1642171973601,445.78838293,146.09,145.99,10.969]
[1642171973802,445.78838293,146.09,145.99,12.47728789]
[1642171974002,2.738,146.18,146.03,0.32246606]
[1642171974200,84.7767,146.24,146.04,10.967]
[1642171974408,84.7767,146.24,146.04,12.47208961]
[1642171974600,26.5931843,146.23,146.14,10.2606]
[1642171974800,26.5931843,146.23,146.14,18.0396]
[1642171975001,26.5931843,146.23,146.14,18.2896]
[1642171975403,26.5931843,146.23,146.14,24.2896]
[1642171976002,28.47681181,146.23,146.14,26.24582671]
[1642171976203,2.736,146.27,146.16,49.0]
[1642171976403,2.735,146.31,146.23,10.2528]
[1642171976605,2.734,146.34,146.23,17.6008]
[1642171977204,30.99299178,146.33,146.23,7.348]
[1642171977404,30.99299178,146.33,146.23,17.6028]
[1642171977405,2.734,146.32,146.23,17.6028]
[1642171977807,2.734,146.32,146.23,17.8528]
[1642171978007,30.99299178,146.33,146.23,23.8528]
[1642171978208,2.734,146.39,146.24,8.23]
[1642171978408,2.734,146.39,146.24,10.963]
[1642171978609,2.734,146.39,146.24,17.213]
[1642171978808,69.72,146.41,146.24,8.23]
[1642171978809,2.733,146.4,146.24,8.23]
[1642171979210,23.07572962,146.39,146.24,8.23]
[1642171979411,2.733,146.38,146.24,8.23]
[1642171979609,2.983,146.38,146.29,10.2502]
[1642171979809,8.23,146.37,146.18,12.46062635]
[1642171980011,30.8106796,146.35,146.18,8.23]
[1642171980210,10.964,146.34,146.18,8.23]
[1642171980611,12.66477588,146.34,146.18,8.23]
[1642171980813,11.214,146.34,146.18,8.23]
[1642171981011,25.42444969,146.32,146.21,10.2558]
[1642171981211,2.734,146.31,146.21,10.2558]
[1642171981412,25.67444969,146.32,146.21,10.2558]
[1642171981714,25.42444969,146.32,146.21,10.5058]
[1642171981912,25.42444969,146.32,146.21,10.2558]
[1642171982513,2.734,146.31,146.21,10.2558]
[1642171982913,2.734,146.31,146.21,10.5058]
[1642171983112,2.734,146.31,146.21,10.2558]
[1642171983513,2.734,146.35,146.22,8.23]
[1642171983714,2.734,146.37,146.29,10.2505]
[1642171983915,2.733,146.41,146.29,16.7375]
[1642171984346,26.60516173,146.4,146.29,16.7375]
[1642171984540,2.733,146.39,146.29,16.7375]
[1642171984940,2.983,146.39,146.29,16.7375]
[1642171985140,2.983,146.39,146.29,10.2505]
[1642171985339,2.983,146.39,146.27,10.2516]
[1642171985541,72.703,146.39,146.26,2.733]
[1642171985744,8.23,146.38,146.26,2.733]
[1642171985946,10.2532,146.35,146.26,2.733]
[1642171986140,2.734,146.34,146.26,2.733]
[1642171986342,13.2372,146.35,146.22,10.964]
[1642171986542,13.2372,146.35,146.22,16.964]
[1642171986741,13.2372,146.35,146.22,11.214]
[1642171987342,13.2372,146.35,146.23,10.2546]
[1642171987542,13.2372,146.35,146.2,8.23]
[1642171988041,14.93797588,146.35,146.2,8.23]
[1642171988444,13.2372,146.35,146.21,10.2558]
[1642171988642,13.2372,146.35,146.21,12.9898]
[1642171988844,8.23,146.34,146.21,2.734]
[1642171989045,10.2581,146.28,146.18,2.734]
[1642171989244,10.2581,146.28,146.17,2.735]
[1642171989245,22.71723925,146.27,146.17,2.735]
[1642171989447,22.96723925,146.27,146.14,8.23]
[1642171989646,2.735,146.26,146.11,8.23]
[1642171989847,8.23,146.36,146.12,12.46362635]
[1642171990051,10.2553,146.32,146.19,34.1817]
[1642171990250,2.735,146.35,146.2,10.964]
[1642171990450,2.734,146.36,146.2,12.46162635]
[1642171990646,26.54677813,146.35,146.2,12.46162635]
[1642171990948,26.54677813,146.35,146.2,18.71162635]
[1642171991145,26.54677813,146.35,146.21,1.49762635]
[1642171991347,10.2541,146.34,146.23,10.2545]
[1642171991549,13.2381,146.34,146.23,10.2545]
[1642171992950,13.2381,146.34,146.23,10.5045]
[1642171993153,2.734,146.34,146.24,8.23]
[1642171993350,29.28077813,146.35,146.27,10.2516]
[1642171993553,26.54677813,146.35,146.27,10.2516]
[1642171994652,26.79677813,146.35,146.27,10.2516]
[1642171995483,2.733,146.39,146.27,18.2776]
[1642171995651,10.2506,146.39,146.27,26.7576]
[1642171995851,2.733,146.41,146.27,26.7576]
[1642171996055,2.733,146.41,146.27,28.51522635]
[1642171996251,2.733,146.43,146.27,34.25522635]
[1642171996452,0.47207486,146.44,146.27,34.51522635]
[1642171996653,0.47207486,146.44,146.27,52.68212966]
[1642171996853,0.47207486,146.44,146.28,10.270544]
[1642171997054,0.47207486,146.44,146.36,10.2441]
[1642171997255,0.47207486,146.44,146.36,17.0471]
[1642171997453,0.47207486,146.44,146.36,17.2971]
[1642171998254,0.47207486,146.44,146.36,25.5271]
[1642171998557,0.47207486,146.44,146.37,1.49762635]
[1642171998754,0.47207486,146.44,146.41,10.2391]
[1642171998953,0.47207486,146.44,146.42,3.03219996]
[1642172000358,0.47207486,146.44,146.43,10.2396]
[1642172000758,0.47207486,146.44,146.43,15.7676]
[1642172001759,0.47207486,146.44,146.43,10.2396]
[1642172001958,0.47207486,146.44,146.42,3.03219996]
[1642172002559,0.47207486,146.44,146.42,3.28219996]
[1642172003191,0.47207486,146.44,146.42,13.52279996]
[1642172003593,2.731,146.53,146.42,13.52279996]
[1642172003793,2.73,146.55,146.42,22.23579996]
[1642172003991,0.34280299,146.56,146.43,2.73]
[1642172004192,0.34280299,146.56,146.49,10.236]
[1642172004395,0.34280299,146.56,146.49,16.496]
[1642172004592,9.05363158,146.59,146.49,16.746]
[1642172004791,9.05363158,146.61,146.49,16.746]
[1642172004991,9.05363158,146.61,146.5,10.959]
[1642172005491,9.05363158,146.61,146.5,11.209]
[1642172005692,8.55363158,146.61,146.5,11.209]
[1642172005890,8.55363158,146.61,146.5,18.425]
[1642172006091,30.47438475,146.62,146.55,10.2317]
[1642172006292,2.729,146.63,146.55,17.9637]
[1642172006495,0.07962902,146.64,146.55,18.2137]
[1642172006692,0.07962902,146.64,146.58,0.3071718]